Cogmind - Beta 13 @@@ ROGUE MODE // 2024.06.04 @ 00:51:53 Player: UberDoot Result: Destroyed by 8R-AWN with 8R-AWN's Boregun Performance ------------- Evolutions (0) 0 Regions Visited (3) 600 Robots Destroyed (20) 100 Value Destroyed (487) 487 Prototype IDs (14) 280 Alien Tech Used (0) 0 Bonus (0) 0 TOTAL SCORE: 1467 Bonus ------- None Cogmind --------- Core Integrity 0/250 Matter 300/300 Energy 25/100 System Corruption 0% Temperature Warning (306) Movement Core (150) Ox2 Location -10/Exiles Parts ------- > --- POWER (1) -------- (None) > --- PROPULSION (2) --- (None) > --- UTILITY (2) ------ Heat Sink Core Shielding > --- WEAPON (2) ------- Heavy Particle Cannon > --- INVENTORY (5) ---- Core Shielding Light Armor Plating Particle Cannon Peak State ------------ > --- POWER ------------ Ion Engine > --- PROPULSION ------- Light Treads Light Treads > --- UTILITY ---------- Improved Heat Sink High-capacity Storage Unit > --- WEAPON ----------- Particle Cannon Particle Cannon > --- INVENTORY -------- Light Ion Engine Light Deuterium Engine Light Treads Heat Sink Heat Sink Large Battery Advanced Visual Processing Unit Improved Sensor Array Signal Interpreter Improved Targeting Computer Core Shielding Core Shielding Light Armor Plating Light Armor Plating Light Armor Plating Particle Cannon Heavy Particle Cannon Grenade Launcher Grenade Launcher Datajack [Rating: 14] Favorites ----------- Power Ion Engine Engine Ion Engine Propulsion Light Treads Treads Light Treads Leg Aluminum Leg Utility Improved Heat Sink Device Improved Heat Sink Storage High-capacity Storage Unit Protection Light Armor Plating Weapon Particle Cannon Energy Cannon Particle Cannon Ballistic Gun Assault Rifle Launcher Grenade Launcher Special Melee Weapon Datajack Build | -11 -10 -10 -10 ------- Run | Yrd Mat Min Exi Slots Evolved . | . . . . Power . | . . . . Propulsion . | . . . . Utility . | . . . . Weapon . | . . . . Parts Attached 28 | 7 11 3 7 Power 3 | 1 1 1 . Engine 3 | 1 1 1 . Core . | . . . . Reactor . | . . . . Propulsion 6 | 2 4 . . Treads 4 | . 4 . . Leg 2 | 2 . . . Wheel . | . . . . Hover . | . . . . Flight . | . . . . Utility 9 | 2 4 . 3 Device 3 | 1 1 . 1 Storage 3 | 1 2 . . Processor . | . . . . Hackware . | . . . . Protection 3 | . 1 . 2 Artifact . | . . . . Weapon 10 | 2 2 2 4 Energy Gun . | . . . . Energy Cannon 5 | . 2 1 2 Ballistic Gun 2 | 2 . . . Ballistic Cannon . | . . . . Launcher 2 | . . 1 1 Special Weapon . | . . . . Impact Weapon . | . . . . Slashing Weapon . | . . . . Piercing Weapon . | . . . . Special Melee Weapon 1 | . . . 1 Unidentified Prototypes . | . . . . Parts Lost 8 | . 2 . 6 Power 2 | . 1 . 1 Propulsion 2 | . . . 2 Utility 3 | . 1 . 2 Weapon 1 | . . . 1 Highest Loss Streak 6 | . 1 . 6 To Critical Strikes 2 | . . . 2 Average Slot Usage (%) 99 | . 99 99 99 Engine 13 | . 13 14 13 Treads 26 | . 25 28 27 Device 10 | . 5 14 14 Storage 11 | . 14 14 8 Protection 5 | . 8 . 5 Energy Cannon 19 | . 15 27 20 Ballistic Gun 4 | . 12 . . Special Melee Weapon 2 | . . . 6 Naked Turns . | . . . . Heaviest Build 56 | 12 56 54 54 Greatest Support 40 | 20 40 40 40 Greatest Overweight (x) 1 | . 1 1 1 Average Overweight (x) . | . . 1 . Largest Inventory Capacity 20 | 8 20 20 20 Average Capacity 14 | 7 13 20 13 Most Carried 20 | 4 20 20 20 Average Carried 13 | 3 11 19 13 Final Capacity 20 | 8 20 20 5 Final Carried 20 | 4 20 20 3 Class Distribution -------------------- 100% | Mutant Dominant Class ---------------- Mutant | -10/Materials Mutant | -10/Mines Mutant | -10/Exiles Resources | -11 -10 -10 -10 ----------- Run | Yrd Mat Min Exi Matter Collected 724 | 294 235 45 150 Remotely . | . . . . Salvage Created 793 | 121 575 82 15 Parts 44 | 5 32 7 . Haulers Intercepted 2 | . 2 . . Recyclers Shooed 3 | . 2 1 . Parts Field Recycled . | . . . . Retrieved Matter . | . . . . Parts Self-Destructed . | . . . . Prevented . | . . . . Kills | -11 -10 -10 -10 ------- Run | Yrd Mat Min Exi Combat Hostiles Destroyed 20 | . 11 2 7 Guns 8 | . 8 . . Cannons 3 | . 3 . . AOE 9 | . . 2 7 Classes Destroyed 8 | 2 3 2 1 Builder 1 | . . 1 . Tunneler 1 | 1 . . . Hauler 2 | . 2 . . Recycler 2 | 1 . 1 . Watcher 1 | . 1 . . Swarmer 2 | . . 2 . Grunt 11 | . 11 . . Assembled 7 | . . . 7 Best Kill Streak 7 | 2 3 2 7 Combat Bots Only 7 | . 3 2 7 Max Kills in Single Turn 2 | 1 1 2 2 Gunslinging . | . . . . Exploded 2 | . . 2 2 Melee . | . . . . Uniques/NPCs Destroyed . | . . . . Combat | -11 -10 -10 -10 -------- Run | Yrd Mat Min Exi Hostile Shots Fired 111 | . 50 4 57 Missed 25 | . 14 . 11 Damage Taken 1307 | . 502 30 775 Core 253 | . 78 6 169 Absorbed by Shields . | . . . . Redirected to Shielding 23 | . . . 23 Core Remaining (%) 100 | 100 . . . Volleys Fired 79 | 6 45 5 23 Largest 2 | 2 2 2 2 Hottest 143 | 40 136 136 143 Shots Fired 146 | 12 90 9 35 Gun 82 | 12 70 . . Cannon 53 | . 20 8 25 Launcher 11 | . . 1 10 Special . | . . . . Kinetic 82 | 12 70 . . Thermal 53 | . 20 8 25 Explosive 11 | . . 1 10 Electromagnetic . | . . . . Robot Hit Streak 11 | 4 11 1 5 Robot Miss Streak 3 | 3 3 2 2 Penetration Max . | . . . . Secondary Targets 1 | . 1 . . Max Gunslinging Chain 1 | . 1 . . Shots Hit Robots 90 | 8 58 3 21 Core Hits 55 | 4 28 3 20 Critical Kills . | . . . . Critical Parts Destroyed . | . . . . Critical Strikes . | . . . . Melee Attacks 4 | . . . 4 Impact . | . . . . Slashing . | . . . . Piercing . | . . . . Sneak Attacks 4 | . . . 4 Combat Hostiles . | . . . . Follow-up Attacks . | . . . . Damage Inflicted 1334 | 86 716 136 396 Guns 574 | 86 488 . . Cannons 319 | . 224 61 34 Explosions 425 | . . 63 362 Melee . | . . . . Ramming 16 | . 4 12 . Kinetic 574 | 86 488 . . Thermal 319 | . 224 61 34 Explosive 425 | . . 63 362 Electromagnetic . | . . . . Impact . | . . . . Slashing . | . . . . Piercing . | . . . . Highest Corruption . | . . . . Average Corruption . | . . . . Corruption Purged . | . . . . Corruption Blocked . | . . . . Overload Shots . | . . . . Overflow Damage . | . . . . Projectiles . | . . . . Explosions . | . . . . Melee . | . . . . Knockbacks . | . . . . Impact . | . . . . Kinetic . | . . . . Secondary . | . . . . Self-Inflicted Damage . | . . . . Shots . | . . . . Rammed 5 | . 4 1 . Targets Rammed 6 | . 4 2 . Kicked . | . . . . Crushed 1 | . . 1 . Highest Temperature 307 | . 290 132 307 Average Temperature 103 | . 70 70 191 Received Heat Transfer 252 | . 252 . . Effects 1 | . . . 1 Interference 1 | . . . 1 Siege Activations . | . . . . Robots Corrupted . | . . . . Combat Hostiles . | . . . . Parts Fried . | . . . . Impact Corruptions . | . . . . Robots Melted . | . . . . Combat Hostiles . | . . . . Parts Melted 1 | . 1 . . Heat Transferred 671 | . 407 111 153 Parts Sabotaged . | . . . . Parts Stolen . | . . . . Parts Stripped . | . . . . Power Chain Reactions . | . . . . Alert | -11 -10 -10 -10 ------- Run | Yrd Mat Min Exi Peak Influence 217 | 10 217 75 . Initial 6 | . 6 . . Average 56 | 4 71 35 . Maximum Alert Level 1 | . 1 . . Low Security (%) 94 | 100 92 100 . Level 1 5 | . 7 . . Level 2 . | . . . . Level 3 . | . . . . Level 4 . | . . . . Level 5 . | . . . . High Security . | . . . . Max Security . | . . . . Squads Dispatched 3 | . 2 1 . Investigation 2 | . 1 1 . Extermination . | . . . . Reinforcement 1 | . 1 . . Assault . | . . . . Garrison . | . . . . Intercept . | . . . . Searches Triggered . | . . . . Construction Impeded . | . . . . Haulers Reinforced . | . . . . Active Scanning Responses . | . . . . Cargo Convoy Interrupts . | . . . . Stealth | -11 -10 -10 -10 --------- Run | Yrd Mat Min Exi Distress Signals 2 | . 2 . . Communications Jammed . | . . . . Distress Signals . | . . . . Times Spotted 34 | . 23 3 8 Peak Tracking Total 9 | . 6 3 9 Tactical Retreats 4 | . 3 1 . Traps | -11 -10 -10 -10 ------- Run | Yrd Mat Min Exi Traps Triggered 4 | . 4 . . Indirectly . | . . . . Trap Hack Attempts . | . . . . Triggered . | . . . . Disarmed . | . . . . Reprogrammed . | . . . . Reused . | . . . . Traps Extracted . | . . . . Installed . | . . . . Triggered . | . . . . Machines | -11 -10 -10 -10 ---------- Run | Yrd Mat Min Exi Machines Disabled 7 | . . 2 5 Max in Single Turn 2 | . . 1 2 Machines Repaired . | . . . . Machines Dismantled . | . . . . Machines Sabotaged . | . . . . Overloaded Fab Kills . | . . . . Hacking | -11 -10 -10 -10 --------- Run | Yrd Mat Min Exi Machines Accessed 7 | . 5 1 1 Terminals 4 | . 4 . . Fabricators . | . . . . Repair Stations . | . . . . Recycling Units 1 | . 1 . . Scanalyzers . | . . . . Garrison Access . | . . . . Total Hacks 13 | . 11 1 1 Successful 5 | . 3 1 1 Failed 8 | . 8 . . Catastrophic 1 | . 1 . . Database Lockouts . | . . . . Manual 6 | . 6 . . Terminals 10 | . 10 . . Fabricators . | . . . . Repair Stations . | . . . . Recycling Units 1 | . 1 . . Scanalyzers . | . . . . Garrison Access . | . . . . Terminal Hacks 4 | . 2 1 1 Record 1 | . . . 1 Open Door 1 | . . 1 . Locate Traps 2 | . 2 . . Fabricator Hacks . | . . . . Repair Station Hacks . | . . . . Recycling Unit Hacks . | . . . . Scanalyzer . | . . . . Garrison Access Hacks . | . . . . Unauthorized Hacks 1 | . 1 . . Terminals 1 | . 1 . . Botnet 1 | . 1 . . Fabricators . | . . . . Repair Stations . | . . . . Recycling Units . | . . . . Scanalyzers . | . . . . Garrison Access . | . . . . Data Cores Recovered . | . . . . Used . | . . . . Hacking Detections 5 | . 5 . . Full Trace Events . | . . . . Feedback Events . | . . . . Feedback Blocked . | . . . . Robot Schematics Acquired . | . . . . Robots Built . | . . . . Authchips . | . . . . Time . | . . . . Total Robot Build Rating . | . . . . Part Schematics Acquired . | . . . . Parts Built . | . . . . Authchips . | . . . . Time . | . . . . Total Part Build Rating . | . . . . Parts Repaired . | . . . . Time . | . . . . Parts Recycled . | . . . . Recycled Matter . | . . . . Retrieved Matter . | . . . . Retrieved Components . | . . . . Parts Scanalyzed . | . . . . Part Schematics Acquired . | . . . . Parts Damaged . | . . . . Bothacking | -11 -10 -10 -10 ------------ Run | Yrd Mat Min Exi Used RIF Installer . | . . . . Robots Hacked 4 | . . . 4 Non-combat 3 | . . . 3 Combat 1 | . . . 1 Robot Hacks Applied 4 | . . . 4 parse_system 4 | . . . 4 Relay Couplers Released . | . . . . Fabnet Peak Effective % . | . . . . Robots Rewired . | . . . . Allies Hacked . | . . . . Hacks Repelled . | . . . . Allies | -11 -10 -10 -10 -------- Run | Yrd Mat Min Exi Total Allies . | . . . . Largest Group . | . . . . Highest-Rated Group . | . . . . Highest-Rated Ally . | . . . . Total Orders . | . . . . Ally Attacks . | . . . . Total Damage . | . . . . Kills . | . . . . Allies Corrupted . | . . . . Allies Melted . | . . . . Intel | -11 -10 -10 -10 ------- Run | Yrd Mat Min Exi Robot Analysis Total . | . . . . Derelict Logs Recovered 1 | . . 1 . Drone Launches . | . . . . Drone Recoveries . | . . . . Exploration | -11 -10 -10 -10 ------------- Run | Yrd Mat Min Exi Turns Passed 4333 | 117 1629 819 1768 Spaces Moved 1963 | 67 761 327 808 Core 5 | 5 . . . Treads 1802 | . 667 327 808 Legs 156 | 62 94 . . Wheels . | . . . . Hover . | . . . . Flight . | . . . . Fastest Speed 50 | 50 120 240 160 Average Speed 198 | 114 182 240 202 Slowest Speed 240 | 120 240 240 240 Overloaded Moves . | . . . . Propulsion Burnouts . | . . . . Robots Hopped . | . . . . Cave-ins Triggered . | . . . . Exploration Rate (%) 50 | 4 84 31 82 Regions Visited 3 Branch Regions 2 Pre-discovered Areas 1 | . . . 1 Known Exits Taken . | . . . . Unknown Exits Taken 3 | 1 1 1 . Scrap Searched 1 | . . 1 . Spaces Dug . | . . . . Terrain Destroyed 46 | . . 10 36 Melee . | . . . . Projectile 2 | . . . 2 AOE 44 | . . 10 34 Terrain Rammed . | . . . . Walls Destroyed . | . . . . Machines Disabled . | . . . . Actions | -11 -10 -10 -10 --------- Run | Yrd Mat Min Exi Total 2270 | 93 916 354 907 Wait 109 | 10 54 2 43 Move 1960 | 66 760 326 808 Hop . | . . . . Pick Up 49 | 4 27 8 10 Fast Attach 13 | 7 4 . 2 Attach 10 | . 4 2 4 Detach 1 | . 1 . . Swap 5 | . 3 1 1 Drop 34 | . 14 8 12 Fire 79 | 6 45 5 23 Melee 4 | . . . 4 Ram . | . . . . Kick . | . . . . Crush 6 | . 4 2 . Escape Stasis . | . . . . Rewire . | . . . . Trap . | . . . . Miscellaneous . | . . . . Route ------- -11/Scrapyard -10/Materials (discovered 3 exits: *Mat x2 / *Min) -10/Mines (discovered 2 exits: Mat / *Exi) -10/Exiles (discovered 2 exits: [*Min x2]) History --------- Turn | Location | Event 7 | -11/Scrapyard | Discovered new exit (range 15) 118 | -11/Scrapyard | Entered Materials 221 | -10/Materials | Discovered new exit (range 15) 339 | -10/Materials | Build established: Mutant 1015 | -10/Materials | Discovered new exit (range 10) 1379 | -10/Materials | Discovered new exit (range 13) 1747 | -10/Materials | Entered Mines 1829 | -10/Mines | Identified exit to Materials 1935 | -10/Mines | Deemed a non-threat by the Exiles lab entrance 1935 | -10/Mines | Discovered new exit (range 5) 2036 | -10/Mines | Met a Derelict shopkeep closing up shop 2566 | -10/Mines | Entered Exiles 2600 | -10/Exiles | Discovered new exit (range 15) 2634 | -10/Exiles | Met 8R-AWN 2672 | -10/Exiles | Met EX-HEX 2770 | -10/Exiles | Met EX-DEC 2782 | -10/Exiles | Learned location of Zion (-6) 2887 | -10/Exiles | Visited The Gauntlet 3360 | -10/Exiles | Met EX-BIN 3642 | -10/Exiles | Discovered new exit (range 10) 4201 | -10/Exiles | Attacked by the Exiles 4270 | -10/Exiles | Destroyed 7 combat bots 4294 | -10/Exiles | Core integrity fell below 50% 4330 | -10/Exiles | Core integrity fell below 20% 4334 | -10/Exiles | Destroyed by 8R-AWN with 8R-AWN's Boregun Last Messages --------------- 04327_ HV Slug penetrates Earth. 04327_ Penetrated by HV Slug. 04327_ Lgt. Treads destroyed. 04327_ HV Slug penetrates Earth. 04329_ Penetrated by HV Slug. 04329_ HV Slug penetrates Earth. 04329_ Penetrated by HV Slug. 04329_ HV Slug penetrates Earth. 04332_ Penetrated by HV Slug. 04332_ Critical hit (Destroy). 04332_ Particle Cannon destroyed. 04332_ HV Slug penetrates Earth. 04332_ Penetrated by HV Slug. 04332_ HV Slug penetrates Earth. 04334_ Overheating: System interference. 04334_ Hvy. Particle Cannon temporarily disabled. 04334_ Penetrated by HV Slug. 04334_ HV Slug penetrates Earth. 04334_ Penetrated by HV Slug. Map ----- +----------------------------------------------------+ | ?????????????????????????????????????????????????? | | ?????????????????????????????????????????????????? | | ??????????#####??????????????????????????????????? | | ?????????## ##?????????????????????????????????? | | ?????????# #?????????????????????????????????? | | ?????????# < #?????????????????????????????????? | | ?????????# ! ###???????????????????????????????? | | ?????????# #???????????????????????????????? | | ?????????# ##???????????????????????????????? | | ?????????## #????????????????????????????????? | | ??????????# ##???????????????????????????????? | | ??????????## #????????????#######????????????? | | ???????????# #######??????#! ! "#????????????? | | ???????????# #""##?????# "#????????????? | | ???????????## ##????# "#????????????? | | ????????????##" #;???## " #????????????# | | ????????????#"" ;####" "#???????????? | | ????????????#### ##" ""#????????????" | | ???????????????## #"" ####???????????" | | ????????????????#"## #??????????"" | | ????????????????####### # #??????????"" | | ??????????????????????### # #??????? | | ????????????????######## #???????" | | ????????????????# ! """ g #????# | | ????????????????#! ! ]! ! ###" # #??### | | ????????????????#!= *!] /@!"#?##" ####X# | | ????????????????#! *! ![ ]!##??#" | | ????????????????# !""" " #;#???#"# | | ????????????????#######;;# #???#### * | | ??????????????????????# ## #??????### | | ?????????????????????? ?# #????????### | | ?????????????????????# #?# #??????????## * | | ????????????????????? ??# #???????????## | | ????????????????????# #??# #????????????##" | | ???????????????????? #???? ??????????????#""" | | ???????????????????? ?????#?????????????##" | | ???????????????????#????????????????????#"" | | ???????????????????????????????????????##""" | | ???????????????????????????????????????#""" | | ???????????????????????????????????????#""" | | ???????????????????????????????????????#"" | | ???????????????????????????????????????#""" | | ???????????????????????????????????????#"" | | ???????????????????????????????????????##"" | | ????????????????????????????????????????#"""" | | ????????????????????????????????????????## | | ?????????????????????????????????????????#" | | ?????????????????????????????????????????#"""" | | ?????????????????????????????????????????#"" | | ?????????????????????????????????????????#" | +----------------------------------------------------+ Best States ------------- Heat Dissipation 39 Energy Generation 10 Energy Capacity 250 Matter Stores 300 Matter Capacity 300 Sight Range 16 Terrain Scan Density 10 Armor Coverage 150 Core Shielding 20 Evasion (%) 55 Recoil Reduction 2 Item Schematics ----------------- None Robot Schematics ------------------ None Fabricated ------------ Nothing Alien Tech Used ----------------- None Achievements -------------- None Challenges ------------ None Game ------ Seed UtilityDynamicStorage Manual? 0 Play Time 00:22:24 Cumulative 51.3 hours Start 2024.06.04 @ 00:32:03 End 2024.06.04 @ 00:51:53 Sessions 1 Manual Loads 0 Difficulty Rogue Special Mode None Game No. 35 Rogue 35 Adventurer 0 Explorer 0 Win Type - Total 0 Types 0/0/0/0/0/0/0/0/0 Lore% 31 Gallery% 47 Achievement% 35 Wizard Run 0 Options --------- Layout 2 ASCII 0 Keyboard 1 Movement Numpad Keybinds 0 Fullscreen 2 Font 24/Smallcaps Map View 50x49 Zoom Use 0% Tactical HUD 1 Map Filters NONE Filters NONE Steam 1 RUN: 1729cf2c-3206-4aa5-9f63-5e381f80d923